bitfinex-derivatives/quotes_BTCF0:USTF0_20241231
["timestamp","ask_amount","ask_price","bid_price","bid_amount"]
[1735603960394,0.053946,92857.0,92855.0,0.003]
[1735603963192,0.01314162,92859.0,92847.0,0.19228192]
[1735603963396,0.09661915,92864.0,92858.0,0.3608]
[1735603963692,0.053944,92859.0,92858.0,0.3608]
[1735603963882,0.053946,92856.0,92855.0,0.001]
[1735603964288,0.053946,92856.0,92850.0,0.3608]
[1735603964494,0.053947,92855.0,92850.0,0.3608]
[1735603964690,0.053947,92855.0,92854.0,0.3608]
[1735603964893,0.12866425,92858.0,92857.0,0.053946]
[1735603965597,0.0678,92886.0,92857.0,0.053946]
[1735603965598,0.127528,92888.0,92857.0,1.8]
[1735603965799,0.053929,92886.0,92873.0,0.3608]
[1735603966296,0.12911036,92878.0,92873.0,0.3608]
[1735603966692,0.053935,92875.0,92873.0,0.3608]
[1735603966891,0.12911036,92878.0,92873.0,0.3608]
[1735603967085,0.004,92874.0,92873.0,0.3608]
[1735603967600,0.004,92874.0,92872.0,0.25720308]
[1735603968693,0.002,92874.0,92872.0,0.25720308]
[1735603968893,0.002,92874.0,92858.0,0.3608]
[1735603968894,0.053936,92873.0,92871.0,0.1929377]
[1735603969198,0.121636,92873.0,92871.0,0.1929377]
[1735603969390,0.053937,92872.0,92866.0,0.25720308]
[1735603969585,0.05394,92867.0,92866.0,0.17707812]
[1735603970102,0.05394,92867.0,92858.0,0.68145612]
[1735603970400,0.05394,92867.0,92847.0,0.30386566]
[1735603970401,0.053951,92848.0,92847.0,0.30386566]
[1735603971797,0.053954,92842.0,92841.0,0.3608]
[1735603972394,0.053959,92834.0,92830.0,0.1385]
[1735603972595,0.053964,92826.0,92824.0,0.3608]
[1735603974003,0.053964,92826.0,92824.0,0.3648]
[1735603974903,0.053964,92826.0,92824.0,0.3608]
[1735603975295,0.053964,92826.0,92824.0,0.3618]
[1735603976305,0.01030311,92825.0,92824.0,0.3618]
[1735603978095,0.01030311,92825.0,92824.0,1.8618]
[1735603978292,0.096895,92832.0,92831.0,0.053961]
[1735603979306,0.053952,92846.0,92836.0,0.053958]
[1735603979503,0.053952,92846.0,92845.0,0.3608]
[1735603980805,0.001,92846.0,92845.0,0.3608]
[1735603981507,0.054952,92846.0,92845.0,0.3608]
[1735603982207,0.056952,92846.0,92845.0,0.3618]
[1735603983205,0.003,92846.0,92845.0,0.3618]
[1735603986504,0.0159477,92846.0,92845.0,0.3618]
[1735603986907,0.1128427,92846.0,92845.0,0.3618]
[1735603988113,0.099895,92846.0,92845.0,0.3618]
[1735603989505,0.003,92846.0,92845.0,0.3618]
[1735603990708,0.003,92846.0,92845.0,0.415753]
[1735603992209,0.003,92846.0,92845.0,0.3618]
[1735603992613,0.003,92846.0,92845.0,0.001]
[1735603993016,0.0757,92846.0,92836.0,0.3608]
[1735603993203,0.0732,92845.0,92836.0,0.3608]
[1735603993613,0.053957,92837.0,92836.0,0.3608]
[1735603995412,0.004,92846.0,92836.0,0.3608]
[1735603995612,0.001,92846.0,92845.0,0.3608]
[1735603995819,0.08672302,92855.0,92845.0,0.3608]
[1735603996024,0.053948,92853.0,92845.0,0.3608]
[1735603996319,0.08672302,92855.0,92852.0,0.053948]
[1735603996524,0.16122557,92862.0,92854.0,0.3608]
[1735603996708,0.16122557,92862.0,92856.0,0.053946]
[1735603996908,0.16122557,92862.0,92860.0,0.053944]
[1735603998022,0.01212025,92864.0,92855.0,1.8608]
[1735603998325,0.0967945,92865.0,92863.0,0.3608]
[1735603999224,0.053941,92864.0,92863.0,0.3608]
[1735603999416,0.0967945,92865.0,92860.0,0.001]
[1735603999417,0.053943,92862.0,92860.0,0.001]
[1735603999613,0.001,92865.0,92846.0,0.053952]
[1735603999812,0.053946,92856.0,92844.0,0.3608]
[1735604000017,0.0676,92855.0,92844.0,0.3608]
[1735604000222,0.0676,92855.0,92853.0,0.3608]
[1735604002525,0.0676,92855.0,92853.0,0.3628]
[1735604002824,0.0676,92855.0,92853.0,0.3638]
[1735604005521,0.0676,92855.0,92853.0,0.3648]
[1735604005714,0.0967945,92854.0,92853.0,0.3648]
[1735604007215,0.053947,92854.0,92853.0,0.3648]
[1735604008123,0.053947,92854.0,92853.0,0.3618]
[1735604008321,0.053947,92854.0,92853.0,0.3648]
[1735604008722,0.053947,92854.0,92853.0,0.3608]
[1735604008914,0.053947,92854.0,92853.0,0.3648]
[1735604009312,0.053947,92854.0,92853.0,0.3618]
[1735604009512,0.053947,92854.0,92853.0,0.3638]
[1735604009713,0.053947,92854.0,92853.0,0.3648]
[1735604010228,0.053947,92854.0,92853.0,0.004]
[1735604011217,0.053947,92854.0,92853.0,0.003]
[1735604011425,0.053947,92854.0,92853.0,0.004]
[1735604011627,0.053947,92854.0,92853.0,0.003]
[1735604012123,0.0676,92855.0,92843.0,0.3608]
[1735604012317,0.05395,92850.0,92843.0,0.3608]
[1735604012622,0.053951,92849.0,92843.0,0.3608]
[1735604014028,0.09690844,92847.0,92843.0,0.3608]
[1735604014622,0.09690844,92847.0,92843.0,0.3628]
[1735604014825,0.09690844,92847.0,92843.0,0.3668]
[1735604015026,0.09690844,92847.0,92844.0,1.5]
[1735604015527,0.053951,92849.0,92843.0,0.3668]
[1735604016023,0.053951,92849.0,92844.0,0.001]
[1735604018131,0.053951,92849.0,92843.0,0.3648]
[1735604018325,0.01239859,92850.0,92843.0,0.3648]
[1735604018534,0.053952,92846.0,92844.0,0.003]
[1735604018829,0.053952,92846.0,92844.0,0.004]
[1735604019017,0.053952,92846.0,92844.0,0.001]
[1735604019220,0.053952,92846.0,92844.0,0.004]
[1735604019419,0.053952,92846.0,92844.0,0.003]
[1735604021125,0.053952,92846.0,92844.0,0.004]
[1735604021321,0.15086044,92846.0,92844.0,0.004]
[1735604021527,0.2065,92845.0,92844.0,0.004]
[1735604021925,0.260452,92845.0,92844.0,0.004]
[1735604022739,0.260452,92845.0,92844.0,0.003]
[1735604023127,0.053959,92835.0,92825.0,0.3608]
[1735604023631,0.2065,92845.0,92825.0,0.3608]
[1735604023935,0.2075,92845.0,92825.0,0.3608]
[1735604024134,0.05396,92832.0,92825.0,0.3608]
[1735604024325,0.053961,92831.0,92825.0,0.3638]
[1735604024731,0.09693355,92834.0,92825.0,0.3638]
[1735604024932,0.053961,92830.0,92825.0,0.3638]
[1735604025232,0.053962,92829.0,92825.0,0.3638]
[1735604025434,0.053963,92828.0,92825.0,0.3718]
[1735604025824,0.09693355,92833.0,92825.0,0.3718]
[1735604026024,0.053963,92827.0,92825.0,0.3718]
[1735604026735,0.001,92828.0,92825.0,0.3718]
[1735604027235,0.053955,92841.0,92826.0,1.5]
[1735604027424,0.053955,92841.0,92840.0,0.3608]
[1735604028024,0.12924115,92843.0,92841.0,0.053955]
[1735604028230,0.01984115,92843.0,92841.0,0.053955]
[1735604028426,0.01984115,92852.0,92850.0,0.05395]
[1735604028626,0.01984115,92852.0,92851.0,0.3608]
[1735604029036,0.07378915,92852.0,92851.0,0.3608]
[1735604029832,0.053948,92852.0,92851.0,0.3608]
[1735604030233,0.053948,92852.0,92851.0,0.3618]
[1735604031027,0.01269228,92858.0,92851.0,0.3618]
[1735604031428,0.3608,92866.0,92851.0,0.3618]
[1735604031627,0.053948,92852.0,92851.0,0.3618]
[1735604035029,0.053944,92859.0,92851.0,0.3618]
[1735604035724,0.001,92852.0,92851.0,0.3608]
[1735604036130,0.053944,92859.0,92851.0,0.3608]
[1735604036932,0.053948,92852.0,92851.0,0.3608]
[1735604037731,0.053948,92852.0,92851.0,0.6184124]
[1735604039237,0.053948,92852.0,92851.0,0.3608]
[1735604039430,0.053948,92852.0,92851.0,0.3618]
[1735604041842,0.053948,92852.0,92851.0,0.3608]
[1735604042340,0.06621526,92852.0,92851.0,0.3608]
[1735604042544,0.06621526,92852.0,92851.0,0.3618]
[1735604044346,0.053943,92862.0,92852.0,0.053948]
[1735604044742,0.053943,92862.0,92853.0,1.5]
[1735604045441,0.053944,92859.0,92853.0,1.5]
[1735604045839,0.053944,92859.0,92851.0,0.6200124]
[1735604046032,0.053944,92859.0,92851.0,0.6184124]
[1735604046234,0.053944,92859.0,92853.0,0.2576124]
[1735604047242,0.053944,92859.0,92852.0,0.2576124]
[1735604048534,0.01237154,92866.0,92858.0,0.3608]
[1735604048745,0.3608,92872.0,92859.0,0.1372]
[1735604048746,0.57596257,92872.0,92859.0,0.1372]
[1735604048938,0.57596257,92872.0,92860.0,0.0703]
[1735604049133,0.21516257,92872.0,92868.0,0.3608]
[1735604050441,0.48384,92873.0,92868.0,0.3608]
[1735604050442,0.00068,92873.0,92871.0,0.053937]
[1735604050749,0.16122557,92881.0,92877.0,0.053933]
[1735604050938,0.16122557,92881.0,92878.0,0.3608]
[1735604051837,0.053931,92883.0,92878.0,0.3608]
[1735604052145,0.009,92881.0,92878.0,0.3618]
[1735604052739,0.062932,92881.0,92878.0,0.3618]
[1735604052944,0.053933,92879.0,92878.0,0.3618]
[1735604053535,0.053933,92879.0,92878.0,0.001]
[1735604053932,0.053939,92868.0,92867.0,0.2576124]
[1735604054337,0.3608,92871.0,92858.0,0.23161458]
[1735604054542,0.053944,92859.0,92858.0,0.23161458]
[1735604055739,0.053948,92852.0,92851.0,0.3608]
[1735604058653,0.01539111,92859.0,92851.0,0.3608]
[1735604058654,0.053944,92859.0,92851.0,0.3608]
[1735604058849,0.3608,92860.0,92851.0,0.3608]
[1735604059153,0.053943,92861.0,92851.0,0.3608]
[1735604059553,0.0667,92870.0,92860.0,0.3608]
[1735604059554,0.16122557,92870.0,92860.0,0.3608]
[1735604059743,0.16122557,92870.0,92869.0,0.3608]
[1735604060654,0.16222557,92870.0,92869.0,0.3608]
[1735604060839,0.001,92870.0,92869.0,0.3608]
[1735604061444,0.01971394,92876.0,92869.0,0.3608]
[1735604061644,0.003,92870.0,92869.0,0.3608]
[1735604062453,0.008,92870.0,92869.0,0.3618]
[1735604062648,0.414728,92887.0,92870.0,0.053938]
[1735604062853,0.05393,92885.0,92870.0,0.16556945]
[1735604063149,0.003,92876.0,92870.0,0.16556945]
[1735604064065,0.05693,92885.0,92870.0,0.16556945]
[1735604064851,0.003,92876.0,92870.0,0.16656945]
[1735604065867,0.003,92876.0,92869.0,0.3608]
[1735604066467,0.053933,92880.0,92869.0,0.3608]
[1735604066665,0.053933,92880.0,92870.0,0.11163145]
[1735604067352,0.37974826,92887.0,92871.0,0.053937]
[1735604067555,0.37974826,92887.0,92877.0,0.11163145]
[1735604068256,0.43367626,92887.0,92872.0,0.1424]
[1735604068456,0.43967626,92887.0,92872.0,0.1424]
[1735604069059,0.43967626,92887.0,92877.0,0.001]
[1735604069760,0.43967626,92887.0,92879.0,0.3608]
[1735604069761,0.007,92887.0,92879.0,0.3608]
[1735604071167,0.007,92887.0,92883.0,0.05393]
[1735604072464,0.001,92887.0,92883.0,0.05393]
[1735604072662,0.007,92887.0,92883.0,0.05493]
[1735604076574,0.007,92887.0,92883.0,0.001]
[1735604077563,0.007,92887.0,92883.0,0.05493]
[1735604079266,0.007,92887.0,92883.0,0.001]
[1735604082468,0.007,92887.0,92886.0,0.3608]
[1735604083477,0.006,92887.0,92886.0,0.3608]
[1735604083779,0.007,92887.0,92886.0,0.3608]
[1735604085066,0.006,92887.0,92886.0,0.3618]
[1735604085375,0.006,92887.0,92886.0,0.3638]
[1735604085673,0.0707,92899.0,92886.0,0.3638]
[1735604085674,0.053918,92904.0,92894.0,0.053924]
[1735604085880,0.0696,92909.0,92898.0,0.3608]
[1735604086371,0.123516,92909.0,92898.0,0.3608]
[1735604086762,0.101,92900.0,92898.0,0.3608]
[1735604087175,0.101,92900.0,92899.0,0.053921]
[1735604087662,0.107,92900.0,92899.0,0.053921]
[1735604088263,0.101,92900.0,92899.0,0.053921]
[1735604088467,0.107,92900.0,92899.0,0.054921]
[1735604089371,0.053917,92906.0,92899.0,0.001]
[1735604089570,0.0705,92908.0,92899.0,0.001]
[1735604089874,0.124416,92908.0,92899.0,0.001]
[1735604090085,0.05392,92901.0,92899.0,0.001]
[1735604090374,0.0676,92900.0,92899.0,0.001]
[1735604094284,0.087448,92900.0,92899.0,0.001]
[1735604099500,0.448248,92900.0,92899.0,0.001]
[1735604100181,0.053924,92894.0,92893.0,0.19286412]
[1735604100586,0.053928,92887.0,92879.0,0.32164063]
[1735604101878,0.053928,92887.0,92870.0,0.11163145]
[1735604102390,0.053928,92887.0,92864.0,0.32164063]
[1735604102577,0.053937,92872.0,92864.0,0.32164063]
[1735604102786,0.3608,92887.0,92864.0,0.32164063]
[1735604102787,0.053939,92869.0,92864.0,0.32164063]
[1735604103092,0.053941,92865.0,92864.0,0.32164063]
[1735604103483,0.0666,92868.0,92861.0,0.32164063]
[1735604103484,0.053943,92862.0,92861.0,0.32164063]
[1735604105095,0.053943,92862.0,92861.0,0.005]
[1735604105502,0.053943,92862.0,92861.0,0.008]
[1735604105882,0.19568679,92868.0,92861.0,0.008]
[1735604105883,0.12908679,92868.0,92861.0,0.008]
[1735604106395,0.01937644,92868.0,92861.0,0.006]
[1735604106588,0.053939,92869.0,92861.0,0.006]
[1735604106990,0.12908679,92870.0,92861.0,0.001]
[1735604106991,0.053942,92863.0,92861.0,0.001]
[1735604107197,0.053942,92863.0,92861.0,0.003]
[1735604107890,0.053942,92863.0,92861.0,0.002]
[1735604108293,0.053944,92860.0,92859.0,0.3608]
[1735604108988,0.3608,92867.0,92841.0,0.4264]
[1735604109190,0.4321,92859.0,92841.0,0.4264]
[1735604109396,0.053954,92843.0,92841.0,0.4264]
[1735604109694,0.053954,92843.0,92841.0,0.0656]
[1735604110588,0.053954,92843.0,92842.0,0.3608]
[1735604111596,0.053954,92843.0,92841.0,0.0686]
[1735604111791,0.053954,92843.0,92841.0,0.0696]
[1735604112295,0.053954,92843.0,92842.0,0.002]
[1735604112696,0.053954,92843.0,92842.0,0.003]
[1735604114081,0.053954,92843.0,92842.0,0.001]
[1735604114693,0.053954,92843.0,92834.0,0.3608]
[1735604114694,0.053958,92835.0,92834.0,0.3608]
[1735604114996,0.053957,92838.0,92828.0,0.0688]
[1735604115197,0.3608,92868.0,92837.0,0.053957]
[1735604115391,0.12908679,92866.0,92846.0,0.11163145]
[1735604115592,0.053944,92861.0,92855.0,0.3608]
[1735604116094,0.12908679,92866.0,92861.0,0.053943]
[1735604116281,0.12908679,92866.0,92864.0,0.3608]
[1735604116485,0.12908679,92866.0,92865.0,1.5]
[1735604116893,0.48988679,92885.0,92864.0,0.3608]
[1735604117092,0.483,92878.0,92864.0,0.3608]
[1735604117683,0.002,92866.0,92864.0,0.3608]
[1735604119091,0.053935,92876.0,92864.0,0.3658]
[1735604119297,0.053935,92876.0,92864.0,0.3678]
[1735604119799,0.48364,92878.0,92864.0,0.3678]
[1735604120000,0.053936,92875.0,92864.0,0.3678]
[1735604120591,0.053936,92875.0,92864.0,0.3628]
[1735604120891,0.50175345,92878.0,92865.0,0.0677]
[1735604121097,0.05394,92868.0,92865.0,0.0677]
[1735604121594,0.053941,92865.0,92864.0,0.007]
[1735604121800,0.414741,92865.0,92864.0,0.006]
[1735604122300,0.414741,92865.0,92864.0,0.004]
[1735604122800,0.053951,92847.0,92846.0,0.25655559]
[1735604122991,0.414751,92847.0,92846.0,0.25655559]
[1735604123196,0.053951,92847.0,92846.0,0.25655559]
[1735604123593,0.3608,92855.0,92839.0,0.32164063]
[1735604123798,0.053955,92840.0,92834.0,0.0677]
[1735604124195,0.053951,92848.0,92839.0,0.3608]
[1735604124703,0.053951,92848.0,92846.0,0.002]
[1735604125202,0.053951,92848.0,92840.0,0.0722]
[1735604125894,0.053951,92848.0,92847.0,0.3608]
[1735604126096,0.01726534,92855.0,92847.0,0.3608]
[1735604126294,0.053947,92856.0,92847.0,0.3608]
[1735604127699,0.053947,92856.0,92848.0,1.5]
[1735604127896,0.053947,92855.0,92848.0,1.5]
[1735604128108,0.01804498,92863.0,92848.0,1.5]
[1735604128299,0.053948,92854.0,92847.0,0.3608]
[1735604128604,0.053948,92854.0,92847.0,0.3618]
[1735604129295,0.053948,92854.0,92847.0,0.3608]
[1735604129497,0.053948,92854.0,92847.0,0.3648]
[1735604130399,0.053943,92862.0,92847.0,0.418751]
[1735604130997,0.053943,92862.0,92847.0,0.416751]
[1735604131200,0.001,92854.0,92847.0,0.421751]
[1735604131801,0.053948,92853.0,92847.0,0.3678]
[1735604132009,0.05395,92850.0,92847.0,0.3678]
[1735604132502,0.05395,92849.0,92847.0,0.3678]
[1735604132704,0.05395,92849.0,92847.0,0.3608]
[1735604132914,0.05395,92849.0,92847.0,0.3618]
[1735604133302,0.05395,92849.0,92847.0,0.3608]
[1735604133508,0.05395,92849.0,92847.0,0.3618]
[1735604133899,0.05395,92849.0,92847.0,0.3608]
[1735604134105,0.05395,92849.0,92847.0,0.001]
[1735604134303,0.05395,92849.0,92847.0,0.002]
[1735604134996,0.05395,92849.0,92847.0,0.001]
[1735604136305,0.3608,92850.0,92834.0,0.0677]
[1735604136705,0.053955,92841.0,92834.0,0.0677]
[1735604137899,0.053955,92841.0,92839.0,0.3638]
[1735604138100,0.053955,92841.0,92839.0,0.003]
[1735604139396,0.053955,92841.0,92839.0,0.001]
[1735604140405,0.1424,92849.0,92836.0,0.3608]
[1735604140710,0.053955,92840.0,92839.0,0.002]
[1735604140904,0.053955,92840.0,92839.0,0.003]
[1735604141698,0.053955,92840.0,92839.0,0.004]
[1735604142211,0.053955,92840.0,92839.0,0.003]
[1735604142603,0.053955,92840.0,92839.0,0.002]
[1735604142905,0.053955,92840.0,92839.0,0.003]
[1735604143313,0.053955,92840.0,92839.0,0.002]
[1735604144013,0.053955,92840.0,92839.0,0.001]
[1735604144210,0.053955,92840.0,92839.0,0.002]
[1735604145207,0.053955,92840.0,92839.0,0.003]
[1735604146417,0.053955,92840.0,92839.0,0.001]
[1735604146611,0.053955,92840.0,92839.0,0.002]
[1735604147014,0.053955,92840.0,92839.0,0.001]
[1735604147215,0.053957,92837.0,92836.0,0.3608]
[1735604147612,0.053957,92837.0,92826.0,0.0712]
[1735604147613,0.053963,92827.0,92826.0,0.0712]
[1735604148004,0.002,92840.0,92826.0,0.0712]
[1735604148209,0.002,92840.0,92835.0,0.3608]
[1735604148411,0.002,92840.0,92839.0,0.053956]
[1735604149011,0.02068083,92843.0,92842.0,0.053954]
[1735604149409,0.02068083,92849.0,92845.0,0.053952]
[1735604150511,0.01664297,92858.0,92845.0,0.053952]
[1735604150512,0.01664297,92858.0,92845.0,0.054952]
[1735604150717,0.053945,92859.0,92852.0,0.3608]
[1735604151021,0.053945,92858.0,92852.0,0.3608]
[1735604151420,0.053946,92857.0,92852.0,0.3608]
[1735604151621,0.053948,92853.0,92852.0,0.3608]
[1735604152819,0.054948,92853.0,92852.0,0.3608]
[1735604153019,0.053952,92846.0,92845.0,0.25655559]
[1735604153921,0.053954,92842.0,92841.0,0.25655559]
[1735604155107,0.053954,92842.0,92841.0,0.25755559]
[1735604155316,0.053954,92842.0,92841.0,0.001]
[1735604156117,0.054954,92842.0,92841.0,0.001]
[1735604156918,0.053959,92835.0,92831.0,0.3608]
[1735604157320,0.053959,92834.0,92831.0,0.3608]
[1735604158618,0.053959,92834.0,92831.0,0.3648]
[1735604158820,0.3608,92846.0,92831.0,0.3648]
[1735604159024,0.16122557,92847.0,92831.0,0.3648]
[1735604159025,0.16122557,92847.0,92839.0,0.3608]
[1735604159221,0.16122557,92847.0,92840.0,0.193055]
[1735604159818,0.16122557,92847.0,92841.0,1.5]
[1735604160125,0.05395,92849.0,92840.0,0.39565559]
[1735604160625,0.3608,92853.0,92840.0,0.39565559]
[1735604160827,0.053949,92852.0,92840.0,0.39565559]
[1735604161126,0.3608,92853.0,92842.0,0.25655559]
[1735604161325,0.4293,92853.0,92842.0,0.25655559]
[1735604161710,0.11163145,92852.0,92842.0,0.25655559]
[1735604161917,0.4293,92853.0,92842.0,0.25655559]
[1735604162118,0.053953,92844.0,92842.0,0.25655559]
[1735604162628,0.053953,92844.0,92842.0,0.002]
[1735604163012,0.053953,92844.0,92842.0,0.001]
[1735604164715,0.3608,92843.0,92842.0,0.002]
[1735604164923,0.053953,92844.0,92842.0,0.002]
[1735604165831,0.414753,92844.0,92842.0,0.002]
[1735604166425,0.06997497,92844.0,92842.0,0.002]
[1735604167420,0.06997497,92844.0,92842.0,0.001]
[1735604167614,0.06997497,92844.0,92842.0,0.002]
[1735604168421,0.06997497,92844.0,92836.0,0.25655559]
[1735604168726,0.06997497,92844.0,92842.0,0.002]
[1735604169029,0.21517457,92852.0,92843.0,0.3608]
[1735604169229,0.21517457,92852.0,92851.0,0.3608]
[1735604169230,0.16122557,92852.0,92851.0,0.3608]
[1735604170025,0.60919429,92863.0,92859.0,0.053944]
[1735604170026,0.19381229,92861.0,92859.0,0.053944]
[1735604170230,0.19381229,92861.0,92860.0,0.3608]
[1735604171019,0.48392,92871.0,92860.0,0.3608]
[1735604171221,0.48328,92871.0,92870.0,0.3608]
[1735604172640,0.48328,92871.0,92870.0,0.3618]
[1735604173620,0.55418,92871.0,92870.0,0.3618]
[1735604174935,0.35979502,92871.0,92870.0,0.3618]
[1735604175635,0.35979502,92871.0,92870.0,0.001]
[1735604178336,0.35979502,92871.0,92860.0,0.47243145]
[1735604178632,0.05394,92866.0,92860.0,0.47243145]
[1735604180927,0.05394,92866.0,92860.0,0.47543145]
[1735604181426,0.05394,92866.0,92860.0,0.47443145]
[1735604181623,0.05394,92866.0,92860.0,0.47643145]
[1735604182637,0.05394,92866.0,92860.0,0.47543145]
[1735604183832,0.05394,92866.0,92860.0,0.3638]
[1735604184429,0.053941,92865.0,92860.0,0.3638]
[1735604184634,0.053942,92864.0,92860.0,0.3638]
[1735604185141,0.0709,92871.0,92860.0,0.3638]
[1735604185344,0.0709,92871.0,92864.0,0.053941]
[1735604185643,0.0685,92889.0,92870.0,0.3608]
[1735604185644,0.3608,92886.0,92870.0,0.3608]
[1735604185841,0.05393,92884.0,92878.0,0.3608]
[1735604186143,0.0655,92888.0,92878.0,0.3608]
[1735604186445,0.053932,92880.0,92878.0,0.3608]
[1735604186643,0.0655,92888.0,92878.0,0.3608]
[1735604186644,0.05393,92884.0,92878.0,0.3608]
[1735604186833,0.053931,92882.0,92878.0,0.3608]
[1735604187144,0.0816642,92888.0,92878.0,0.3608]
[1735604187145,0.05393,92885.0,92878.0,0.3608]
[1735604187946,0.006,92884.0,92878.0,0.3618]
[1735604188240,0.009,92884.0,92878.0,0.3618]
[1735604188543,0.009,92884.0,92878.0,0.3668]
[1735604188544,0.003,92884.0,92878.0,0.3668]
[1735604188743,0.05693,92884.0,92878.0,0.3668]
[1735604188942,0.053932,92880.0,92878.0,0.3628]
[1735604189137,0.053932,92880.0,92878.0,0.007]
[1735604189138,0.3608,92879.0,92878.0,0.007]
[1735604189339,0.053937,92872.0,92871.0,0.25768106]
[1735604190046,0.3608,92879.0,92862.0,0.3608]
[1735604190236,0.053942,92864.0,92862.0,0.3608]
[1735604190445,0.053942,92864.0,92856.0,0.25768106]
[1735604190844,0.3608,92879.0,92856.0,0.25768106]
[1735604191041,0.053945,92858.0,92856.0,0.25768106]
[1735604191441,0.053946,92857.0,92855.0,0.3608]
[1735604191744,0.053946,92857.0,92856.0,0.004]
[1735604192051,0.053947,92855.0,92854.0,0.25768106]
[1735604192245,0.053947,92855.0,92854.0,0.14928106]
[1735604192647,0.053947,92855.0,92846.0,0.32164063]
[1735604192648,0.053955,92840.0,92839.0,0.14928106]
[1735604194041,0.0684,92847.0,92839.0,0.001]
[1735604194246,0.054955,92840.0,92839.0,0.001]
[1735604194650,0.054955,92840.0,92839.0,0.003]
[1735604195243,0.053955,92840.0,92839.0,0.003]
[1735604196845,0.054955,92840.0,92839.0,0.007]
[1735604197855,0.054955,92840.0,92831.0,0.3608]
[1735604198247,0.053955,92840.0,92839.0,0.002]
[1735604198441,0.053955,92840.0,92839.0,1.502]
[1735604198641,0.053955,92840.0,92839.0,1.503]
[1735604199338,0.053955,92840.0,92839.0,0.003]
[1735604200657,0.054955,92840.0,92839.0,0.001]
[1735604201653,0.055955,92840.0,92831.0,0.3608]
[1735604202257,0.055955,92840.0,92839.0,0.3608]
[1735604202755,0.054955,92840.0,92839.0,0.3608]
[1735604202960,0.055955,92840.0,92839.0,0.3608]
[1735604203349,0.053955,92840.0,92839.0,0.3608]
[1735604203548,0.055955,92840.0,92839.0,0.3608]
[1735604204560,0.056955,92840.0,92839.0,0.3608]
[1735604208260,0.003,92840.0,92825.0,0.00056]
[1735604208561,0.053962,92828.0,92820.0,0.32164063]
[1735604209352,0.11163145,92835.0,92818.0,0.3608]
[1735604209644,0.053963,92827.0,92818.0,0.3608]
[1735604210461,0.053964,92826.0,92818.0,0.3608]
[1735604210661,0.053964,92826.0,92825.0,0.003]
[1735604211458,0.053964,92825.0,92822.0,0.3648]
[1735604212164,0.053965,92824.0,92822.0,0.3648]
[1735604212460,0.053965,92824.0,92822.0,0.3638]
[1735604213054,0.05396,92832.0,92825.0,0.002]
[1735604213250,0.053961,92831.0,92825.0,0.002]
[1735604213446,0.053962,92830.0,92825.0,0.002]
[1735604213653,0.053962,92830.0,92822.0,0.3618]
[1735604214253,0.053962,92830.0,92822.0,0.3608]
[1735604214855,0.053962,92830.0,92822.0,0.3618]
[1735604215757,0.053962,92830.0,92822.0,0.3628]
[1735604216158,0.01528859,92841.0,92822.0,0.3628]
[1735604216464,0.053955,92842.0,92831.0,0.3608]
[1735604216667,0.3608,92849.0,92832.0,0.1335]
[1735604216867,0.053956,92840.0,92832.0,0.1335]
[1735604217056,0.053951,92848.0,92839.0,0.3608]
[1735604217877,0.3608,92849.0,92840.0,0.053955]
[1735604218367,0.003,92848.0,92840.0,0.053955]
[1735604218769,0.003,92848.0,92847.0,0.3608]
[1735604219462,0.003,92848.0,92847.0,0.4282]
[1735604219859,0.009,92848.0,92847.0,0.4282]
[1735604220365,0.012,92848.0,92847.0,0.4282]
[1735604220563,0.009,92848.0,92847.0,0.4282]
[1735604221058,0.009,92848.0,92847.0,0.3608]
[1735604221460,0.013,92848.0,92847.0,0.3608]
[1735604224264,0.013,92848.0,92842.0,0.32164063]
[1735604224265,0.053953,92844.0,92842.0,0.32164063]
[1735604224462,0.053954,92842.0,92841.0,0.32164063]
[1735604226058,0.053954,92842.0,92830.0,0.47243145]
[1735604226059,0.059954,92842.0,92840.0,0.19383531]
[1735604227061,0.058954,92842.0,92840.0,0.19383531]
[1735604227272,0.060954,92842.0,92840.0,0.19383531]
[1735604227469,0.060954,92842.0,92841.0,0.19383531]
[1735604227867,0.058954,92842.0,92841.0,0.19383531]
[1735604228066,0.07546103,92842.0,92841.0,0.19383531]
[1735604229368,0.07546103,92842.0,92830.0,0.3608]
[1735604229568,0.053961,92831.0,92830.0,0.3608]
[1735604231568,0.06809844,92831.0,92830.0,0.3608]
[1735604232970,0.06909844,92831.0,92830.0,0.3608]
[1735604234257,0.001,92831.0,92830.0,0.3608]
[1735604234869,0.001,92831.0,92830.0,1.9255]
[1735604235058,0.053953,92845.0,92831.0,0.05396]
[1735604235264,0.05395,92850.0,92844.0,0.3608]
[1735604235675,0.053951,92848.0,92844.0,0.3608]
[1735604235873,0.01448826,92854.0,92844.0,0.3608]
[1735604236067,0.053953,92845.0,92844.0,0.3608]
[1735604236267,0.055953,92845.0,92844.0,0.3608]
[1735604236775,0.053953,92845.0,92844.0,0.3608]
[1735604237160,0.053954,92843.0,92835.0,0.11163145]
[1735604237365,0.053954,92843.0,92830.0,2.03777145]
[1735604237560,0.053954,92843.0,92830.0,2.03713145]
[1735604238364,0.053954,92843.0,92835.0,0.001]
[1735604239375,0.054954,92843.0,92835.0,0.001]
[1735604239581,0.001,92843.0,92835.0,0.001]
[1735604239772,0.053954,92842.0,92835.0,0.001]
[1735604240378,0.053954,92842.0,92831.0,0.05396]